fUSD/lending_fUSD_20240429
["ID","MTS","AMOUNT","RATE_DAILY","PERIOD"]
[324841232,1714369846676,-556.94,0.0001178,2]
[324841233,1714369846685,-151.0,0.0001178,2]
[324841234,1714369846693,-500.0,0.0001178,2]
[324841235,1714369846702,-500.0,0.0001178,2]
[324841236,1714369846711,-4974.82,0.0001178,2]
[324841237,1714369846720,-500.0,0.0001178,2]
[324841238,1714369846729,-335.84,0.0001178,2]
[324841239,1714369846737,-1321.25,0.0001178,2]
[324841240,1714369846747,-2341.35413197,0.00011823,2]
[324841242,1714369846756,-4796.13,0.0001195,2]
[324841243,1714369846764,-2180.57537937,0.00011998,2]
[324841245,1714369846774,-207.30045411,0.00011998,2]
[324841247,1714369846782,-344.22045915,0.00011998,2]
[324841249,1714369846791,-155.15161992,0.00011999,2]
[324841251,1714369846801,-2212.17975881,0.00011999,2]
[324841253,1714369846809,-193.2568087,0.00011999,2]
[324841255,1714369846818,-199.54255398,0.00011999,2]
[324841257,1714369846828,-15005.49836602,0.00012,2]
[324841259,1714369846837,-409.29540933,0.00012,2]
[324841261,1714369846846,-150.0,0.00012,2]
[324841263,1714369846855,-151.0,0.00012,2]
[324841265,1714369846864,-211.137646,0.00012,2]
[324841268,1714369846873,-233.251933,0.00012,2]
[324841270,1714369846883,-211.137646,0.00012,2]
[324841272,1714369846891,-151.0,0.00012,2]
[324841273,1714369846901,-233.251933,0.00012,2]
[324841275,1714369846910,-151.0,0.00012,2]
[324841292,1714369847066,-272.98923,0.00012,2]
[324841293,1714369847076,-151.0,0.00012,2]
[324841294,1714369847085,-151.0,0.00012,2]
[324841295,1714369847101,-151.0,0.00012,2]
[324841296,1714369847110,-182.107901,0.00012,2]
[324841297,1714369847120,-151.0,0.00012,2]
[324841298,1714369847129,-166.88,0.00012033,2]
[324841299,1714369847138,-500.0,0.00012054,2]
[324841300,1714369847147,-500.0,0.00012054,2]
[324841301,1714369847156,-500.0,0.00012054,2]
[324841302,1714369847165,-500.0,0.00012054,2]
[324841303,1714369847175,-341.24,0.00012054,2]
[324841304,1714369847189,-500.0,0.00012054,2]
[324841305,1714369847198,-500.0,0.00012054,2]
[324841306,1714369847207,-473.0,0.00012054,2]
[324841307,1714369847217,-500.0,0.00012054,2]
[324841308,1714369847226,-500.0,0.00012054,2]
[324841309,1714369847236,-629.87,0.00012054,2]
[324841310,1714369847246,-500.0,0.00012054,2]
[324841311,1714369847255,-2212.09,0.00012054,2]
[324841312,1714369847265,-500.0,0.00012054,2]
[324841313,1714369847274,-500.0,0.00012054,2]
[324841314,1714369847284,-500.0,0.00012054,2]
[324841315,1714369847293,-500.0,0.00012054,2]
[324841316,1714369847303,-500.0,0.00012054,2]
[324841317,1714369847312,-500.0,0.00012054,2]
[324841318,1714369847321,-243.36,0.00012054,2]
[324841319,1714369847331,-500.0,0.00012054,2]
[324841320,1714369847340,-1206.18,0.00012054,2]
[324841321,1714369847349,-1241.44,0.00012054,2]
[324841322,1714369847359,-500.0,0.00012054,2]
[324841323,1714369847368,-500.0,0.00012054,2]
[324841324,1714369847377,-500.0,0.00012054,2]
[324841325,1714369847386,-1143.41,0.00012054,2]
[324841326,1714369847395,-500.0,0.00012054,2]
[324841327,1714369847404,-500.0,0.00012054,2]
[324841328,1714369847414,-500.0,0.00012054,2]
[324841329,1714369847423,-1668.88,0.00012054,2]
[324841330,1714369847432,-500.0,0.00012054,2]
[324841331,1714369847444,-654.9,0.00012054,2]
[324841332,1714369847453,-500.0,0.00012054,2]
[324841333,1714369847463,-1123.26,0.00012054,2]
[324841334,1714369847472,-500.0,0.00012054,2]
[324841335,1714369847481,-500.0,0.00012054,2]
[324841336,1714369847491,-691.21,0.00012054,2]
[324841337,1714369847500,-389.83,0.00012054,2]
[324841338,1714369847509,-1148.03,0.00012054,2]
[324841339,1714369847519,-703.26,0.00012054,2]
[324841340,1714369847530,-500.0,0.00012054,2]
[324841341,1714369847539,-500.0,0.00012054,2]
[324841342,1714369847548,-865.39,0.00012054,2]
[324841343,1714369847557,-500.0,0.00012054,2]
[324841344,1714369847567,-1051.22,0.00012054,2]
[324841345,1714369847576,-766.76,0.00012054,2]
[324841346,1714369847585,-813.64,0.00012054,2]
[324841347,1714369847594,-820.07,0.00012054,2]
[324841348,1714369847603,-1514.85,0.00012054,2]
[324841349,1714369847613,-500.0,0.00012054,2]
[324841350,1714369847622,-500.0,0.00012054,2]
[324841351,1714369847631,-500.0,0.00012054,2]
[324841352,1714369847642,-579.14,0.00012054,2]
[324841353,1714369847651,-3775.3,0.00012054,2]
[324841354,1714369847660,-1259.62,0.00012054,2]
[324841355,1714369847669,-305.51,0.00012054,2]
[324841356,1714369847678,-500.0,0.00012054,2]
[324841357,1714369847687,-500.0,0.00012054,2]
[324841358,1714369847696,-500.0,0.00012054,2]
[324841359,1714369847705,-500.0,0.00012054,2]
[324841360,1714369847714,-500.0,0.00012054,2]
[324841361,1714369847723,-500.0,0.00012054,2]
[324841362,1714369847732,-500.0,0.00012054,2]
[324841363,1714369847742,-4974.82,0.00012054,2]
[324841364,1714369847751,-500.0,0.00012054,2]
[324841365,1714369847760,-1321.25,0.00012054,2]
[324841366,1714369847769,-1848.46,0.00012055,2]
[324841367,1714369847778,-414.11,0.00012055,2]
[324841368,1714369847787,-339.55,0.00012055,2]
[324841369,1714369847796,-414.11,0.00012055,2]
[324841370,1714369847805,-152.31,0.00012055,2]
[324841371,1714369847814,-14935.7,0.00012055,2]
[324841372,1714369847823,-860.95043987,0.00012092,2]
[324841373,1714369847832,-265.87,0.0001215,2]
[324841374,1714369847841,-860.95043983,0.00012165,2]
[324841375,1714369847850,-1044.46,0.00012192,2]
[324841376,1714369847859,-303.26,0.00012192,2]
[324841377,1714369847867,-158.12,0.00012192,2]
[324841378,1714369847876,-300.0,0.00012192,2]
[324841379,1714369847885,-350.66,0.00012192,2]
[324841380,1714369847894,-163.39,0.00012192,2]
[324841381,1714369847903,-301.25,0.00012192,2]
[324841382,1714369847912,-595.21,0.00012192,2]
[324841383,1714369847920,-522.35,0.00012192,2]
[324841384,1714369847929,-162.94,0.00012192,2]
[324841385,1714369847939,-300.0,0.00012192,2]
[324841386,1714369847948,-350.66,0.00012192,2]
[324841387,1714369847957,-522.35,0.00012192,2]
[324841388,1714369847967,-350.66,0.00012192,2]
[324841389,1714369847976,-162.94,0.00012192,2]
[324841390,1714369847985,-300.0,0.00012192,2]
[324841391,1714369847994,-522.35,0.00012192,2]
[324841392,1714369848003,-350.66,0.00012192,2]
[324841393,1714369848012,-162.94,0.00012192,2]
[324841394,1714369848022,-191.99,0.00012192,2]
[324841395,1714369848031,-162.94,0.00012192,2]
[324841396,1714369848040,-350.66,0.00012192,2]
[324841397,1714369848050,-350.66,0.00012192,2]
[324841398,1714369848059,-162.94,0.00012192,2]
[324841399,1714369848068,-350.66,0.00012192,2]
[324841400,1714369848077,-350.1,0.00012192,2]
[324841401,1714369848087,-151.0,0.00012192,2]
[324841402,1714369848096,-151.0,0.00012192,2]
[324841403,1714369848105,-151.0,0.00012192,2]
[324841404,1714369848115,-151.0,0.00012192,2]
[324841405,1714369848126,-860.95043983,0.00012239,2]
[324841406,1714369848136,-525.0,0.00012301,2]
[324841407,1714369848145,-242.21,0.00012307,2]
[324841408,1714369848154,-860.95043983,0.00012312,2]
[324841409,1714369848163,-154.209445,0.00012327,2]
[324841410,1714369848172,-6540.69978067,0.00012327,2]
[324841411,1714369848182,-325.25,0.00012328,2]
[324841412,1714369848196,-500.0,0.00012328,2]
[324841413,1714369848205,-500.0,0.00012328,2]
[324841414,1714369848215,-152.645666,0.00012328,2]
[324841415,1714369848226,-152.645666,0.00012328,2]
[324841416,1714369848235,-151.121557,0.00012328,2]
[324841417,1714369848246,-500.0,0.00012328,2]
[324841418,1714369848256,-151.0,0.00012328,2]
[324841419,1714369848266,-500.0,0.00012328,2]
[324841420,1714369848275,-500.0,0.00012328,2]
[324841421,1714369848285,-629.87,0.00012328,2]
[324841422,1714369848294,-151.0,0.00012328,2]
[324841423,1714369848303,-199.55,0.00012328,2]
[324841424,1714369848313,-2212.09,0.00012328,2]
[324841425,1714369848322,-343.861261,0.00012328,2]
[324841426,1714369848331,-343.861261,0.00012328,2]
[324841427,1714369848341,-500.0,0.00012328,2]
[324841428,1714369848350,-500.0,0.00012328,2]
[324841429,1714369848359,-500.0,0.00012328,2]
[324841430,1714369848368,-181.57,0.00012328,2]
[324841431,1714369848378,-500.0,0.00012328,2]
[324841432,1714369848387,-500.0,0.00012328,2]
[324841433,1714369848396,-151.502003,0.00012328,2]
[324841434,1714369848406,-500.0,0.00012328,2]
[324841435,1714369848415,-1206.18,0.00012328,2]
[324841436,1714369848424,-1241.44,0.00012328,2]
[324841437,1714369848434,-500.0,0.00012328,2]
[324841438,1714369848443,-500.0,0.00012328,2]
[324841439,1714369848452,-500.0,0.00012328,2]
[324841440,1714369848462,-1143.41,0.00012328,2]
[324841441,1714369848472,-500.0,0.00012328,2]
[324841442,1714369848480,-211.137646,0.00012328,2]
[324841443,1714369848491,-417.40002625,0.00012328,2]
[324841444,1714369848500,-500.0,0.00012328,2]
[324841445,1714369848509,-233.251933,0.00012328,2]
[324841446,1714369848518,-211.137646,0.00012328,2]
[324841447,1714369848528,-1668.88,0.00012328,2]
[324841448,1714369848537,-151.0,0.00012328,2]
[324841449,1714369848546,-233.251933,0.00012328,2]
[324841450,1714369848555,-654.9,0.00012328,2]
[324841451,1714369848564,-151.0,0.00012328,2]
[324841452,1714369848573,-500.0,0.00012328,2]
[324841453,1714369848583,-151.0,0.00012328,2]
[324841454,1714369848591,-1123.26,0.00012328,2]
[324841455,1714369848600,-151.0,0.00012328,2]
[324841456,1714369848609,-151.0,0.00012328,2]
[324841457,1714369848619,-500.0,0.00012328,2]
[324841458,1714369848627,-500.0,0.00012328,2]
[324841459,1714369848636,-691.21,0.00012328,2]
[324841460,1714369848646,-1148.03,0.00012328,2]
[324841461,1714369848654,-703.26,0.00012328,2]
[324841462,1714369848663,-500.0,0.00012328,2]
[324841463,1714369848672,-500.0,0.00012328,2]
[324841464,1714369848682,-865.39,0.00012328,2]
[324841465,1714369848690,-500.0,0.00012328,2]
[324841466,1714369848699,-1051.22,0.00012328,2]
[324841467,1714369848708,-766.76,0.00012328,2]
[324841468,1714369848717,-813.64,0.00012328,2]
[324841469,1714369848726,-1514.85,0.00012328,2]
[324841470,1714369848735,-820.07,0.00012328,2]
[324841471,1714369848745,-500.0,0.00012328,2]
[324841472,1714369848754,-500.0,0.00012328,2]
[324841473,1714369848763,-500.0,0.00012328,2]
[324841474,1714369848772,-579.14,0.00012328,2]
[324841475,1714369848781,-3775.3,0.00012328,2]
[324841476,1714369848790,-1259.62,0.00012328,2]
[324841477,1714369848799,-500.0,0.00012328,2]
[324841478,1714369848808,-500.0,0.00012328,2]
[324841479,1714369848817,-223.7165122,0.00012328,2]
[324841480,1714369848827,-531.1,0.00012328,2]
[324841481,1714369848836,-500.0,0.00012328,2]
[324841482,1714369848846,-500.0,0.00012328,2]
[324841483,1714369848855,-500.0,0.00012328,2]
[324841484,1714369848864,-4974.82,0.00012328,2]
[324841485,1714369848873,-500.0,0.00012328,2]
[324841486,1714369848882,-151.0,0.00012328,2]
[324841487,1714369848891,-1321.25,0.00012328,2]
[324841488,1714369848900,-3185.07778658,0.00012338,2]
[324841489,1714369848910,-757.79,0.00012347,2]
[324841490,1714369848919,-336.9,0.0001236,2]
[324841491,1714369848929,-860.95043983,0.00012386,2]
[324841492,1714369848939,-150.0,0.0001241,3]
[324841493,1714369848949,-860.95043983,0.00012459,2]
[324841494,1714369848958,-152.0,0.00012524,3]
[324841495,1714369848968,-168.70521326,0.00012571,2]
[324841496,1714369848977,-1994.86966475,0.0001258,2]
[324841497,1714369848986,-306.118059,0.00012598,2]
[324841498,1714369848996,-155.11445607,0.00012598,2]
[324841499,1714369849005,-155.23381766,0.00012598,2]
[324841500,1714369849014,-3414.70545517,0.00012598,2]
[324841501,1714369849023,-500.0,0.00012598,2]
[324841502,1714369849032,-503.73613167,0.00012599,2]
[324841503,1714369849041,-500.0,0.00012599,2]
[324841504,1714369849051,-264.55724322,0.00012599,2]
[324841505,1714369849060,-500.0,0.00012599,2]
[324841506,1714369849069,-500.0,0.00012599,2]
[324841507,1714369849078,-500.0,0.00012599,2]
[324841508,1714369849087,-500.0,0.00012599,2]
[324841509,1714369849096,-500.0,0.00012599,2]
[324841510,1714369849105,-500.0,0.00012599,2]
[324841511,1714369849115,-500.0,0.00012599,2]
[324841512,1714369849124,-500.0,0.00012599,2]
[324841513,1714369849134,-500.0,0.00012599,2]
[324841514,1714369849143,-500.0,0.00012599,2]
[324841515,1714369849153,-500.95870363,0.00012599,2]
[324841516,1714369849162,-500.0,0.00012599,2]
[324841517,1714369849172,-500.0,0.00012599,2]
[324841518,1714369849182,-500.0,0.00012599,2]
[324841519,1714369849196,-500.0,0.00012599,2]
[324841520,1714369849205,-500.07555815,0.00012599,2]
[324841521,1714369849214,-501.61854495,0.00012599,2]
[324841522,1714369849226,-500.0,0.00012599,2]
[324841523,1714369849235,-500.0,0.00012599,2]
[324841524,1714369849246,-500.0,0.00012599,2]
[324841525,1714369849255,-500.0,0.00012599,2]
[324841526,1714369849266,-211.28393498,0.00012599,2]
[324841527,1714369849275,-500.0,0.00012599,2]
[324841528,1714369849284,-502.27861174,0.00012599,2]
[324841529,1714369849293,-500.0,0.00012599,2]
[324841530,1714369849303,-500.0,0.00012599,2]
[324841531,1714369849312,-416.60377447,0.00012599,2]
[324841532,1714369849321,-502.33360752,0.00012599,2]
[324841533,1714369849330,-500.0,0.00012599,2]
[324841534,1714369849339,-500.0,0.00012599,2]
[324841535,1714369849348,-500.0,0.00012599,2]
[324841536,1714369849358,-500.0,0.00012599,2]
[324841537,1714369849367,-500.0,0.00012599,2]
[324841538,1714369849376,-503.94025972,0.00012599,2]
[324841539,1714369849386,-500.0,0.00012599,2]
[324841540,1714369849395,-500.0,0.00012599,2]
[324841541,1714369849404,-500.0,0.00012599,2]
[324841542,1714369849413,-500.0,0.00012599,2]
[324841543,1714369849423,-500.0,0.00012599,2]
[324841544,1714369849432,-500.0,0.00012599,2]
[324841545,1714369849440,-487.0879564,0.00012599,2]
[324841546,1714369849450,-500.0,0.00012599,2]
[324841547,1714369849459,-500.0,0.00012599,2]
[324841548,1714369849468,-444.89369654,0.00012599,2]
[324841549,1714369849477,-500.0,0.00012599,2]
[324841550,1714369849486,-500.0,0.00012599,2]
[324841551,1714369849497,-500.0,0.00012599,2]
[324841552,1714369849507,-448.36878686,0.00012599,2]
[324841553,1714369849516,-500.0,0.00012599,2]
[324841554,1714369849525,-500.0,0.00012599,2]
[324841555,1714369849534,-500.0,0.00012599,2]
[324841556,1714369849543,-504.81449068,0.00012599,2]
[324841557,1714369849552,-206.16278589,0.00012599,2]
[324841558,1714369849561,-500.0,0.00012599,2]
[324841559,1714369849570,-500.0,0.00012599,2]
[324841560,1714369849579,-512.90003079,0.00012599,2]
[324841561,1714369849589,-500.0,0.00012599,2]
[324841562,1714369849599,-500.0,0.00012599,2]
[324841563,1714369849608,-500.0,0.00012599,2]
[324841564,1714369849617,-150.0,0.00012599,2]
[324841565,1714369849627,-500.0,0.00012599,2]
[324841566,1714369849635,-363.52675783,0.00012599,2]
[324841567,1714369849644,-500.0,0.00012599,2]
[324841568,1714369849653,-500.0,0.00012599,2]
[324841569,1714369849663,-504.78056522,0.00012599,2]
[324841570,1714369849672,-500.0,0.00012599,2]
[324841571,1714369849681,-207.98886816,0.00012599,2]
[324841572,1714369849690,-500.0,0.00012599,2]
[324841573,1714369849699,-500.0,0.00012599,2]
[324841574,1714369849708,-500.0,0.00012599,2]
[324841575,1714369849717,-500.0,0.00012599,2]
[324841576,1714369849726,-627.81,0.00012599,2]
[324841577,1714369849736,-500.0,0.00012599,2]
[324841578,1714369849746,-500.0,0.00012599,2]
[324841579,1714369849755,-209.07,0.00012599,2]
[324841580,1714369849764,-500.0,0.00012599,2]
[324841581,1714369849773,-500.0,0.00012599,2]
[324841582,1714369849782,-500.0,0.00012599,2]
[324841583,1714369849791,-500.0,0.00012599,2]
[324841584,1714369849801,-500.0,0.00012599,2]
[324841585,1714369849810,-500.0,0.00012599,2]
[324841586,1714369849819,-500.0,0.00012599,2]
[324841587,1714369849827,-501.13174412,0.00012599,2]
[324841588,1714369849836,-500.0,0.00012599,2]
[324841589,1714369849845,-500.0,0.00012599,2]
[324841590,1714369849854,-506.18857965,0.00012599,2]
[324841591,1714369849863,-500.0,0.00012599,2]
[324841592,1714369849872,-506.42774414,0.00012599,2]
[324841593,1714369849882,-504.79769083,0.00012599,2]
[324841594,1714369849891,-500.0,0.00012599,2]
[324841595,1714369849900,-500.0,0.00012599,2]
[324841596,1714369849909,-500.0,0.00012599,2]
[324841597,1714369849919,-500.0,0.00012599,2]
[324841598,1714369849928,-500.0,0.00012599,2]
[324841599,1714369849937,-500.0,0.00012599,2]
[324841600,1714369849946,-500.0,0.00012599,2]
[324841601,1714369849955,-500.0,0.00012599,2]
[324841602,1714369849964,-587.14771819,0.00012599,2]
[324841603,1714369849974,-500.0,0.00012599,2]
[324841604,1714369849983,-500.0,0.00012599,2]
[324841605,1714369849993,-500.0,0.00012599,2]
[324841606,1714369850002,-500.0,0.00012599,2]
[324841607,1714369850012,-500.0,0.00012599,2]
[324841608,1714369850166,-500.0,0.00012599,2]
[324841609,1714369850177,-500.0,0.00012599,2]
[324841610,1714369850190,-500.0,0.00012599,2]
[324841611,1714369850199,-504.51280543,0.00012599,2]
[324841612,1714369850209,-500.0,0.00012599,2]
[324841613,1714369850219,-504.72424395,0.00012599,2]
[324841614,1714369850230,-505.57767909,0.00012599,2]
[324841615,1714369850239,-500.0,0.00012599,2]
[324841616,1714369850250,-500.0,0.00012599,2]
[324841617,1714369850259,-501.64820851,0.00012599,2]
[324841618,1714369850270,-500.0,0.00012599,2]
[324841619,1714369850279,-500.0,0.00012599,2]
[324841620,1714369850289,-500.0,0.00012599,2]
[324841621,1714369850299,-500.0,0.00012599,2]
[324841622,1714369850309,-504.82147539,0.00012599,2]
[324841623,1714369850320,-500.0,0.00012599,2]
[324841624,1714369850330,-500.0,0.00012599,2]
[324841625,1714369850340,-500.0,0.00012599,2]
[324841626,1714369850350,-500.0,0.00012599,2]
[324841627,1714369850360,-500.0,0.00012599,2]
[324841628,1714369850370,-509.12712197,0.00012599,2]
[324841629,1714369850380,-397.02,0.00012599,2]
[324841630,1714369850389,-238.66,0.00012599,2]
[324841631,1714369850398,-500.0,0.00012599,2]
[324841632,1714369850408,-505.7140704,0.00012599,2]
[324841633,1714369850417,-491.0783107,0.00012599,2]
[324841634,1714369850426,-500.0,0.00012599,2]
[324841635,1714369850435,-500.0,0.00012599,2]
[324841636,1714369850444,-500.0,0.00012599,2]
[324841637,1714369850453,-500.0,0.00012599,2]
[324841638,1714369850463,-500.0,0.00012599,2]
[324841639,1714369850472,-500.0,0.00012599,2]
[324841640,1714369850481,-500.0,0.00012599,2]
[324841641,1714369850490,-152.645666,0.00012599,2]
[324841642,1714369850503,-152.645666,0.00012599,2]
[324841643,1714369850512,-500.0,0.00012599,2]
[324841644,1714369850522,-500.0,0.00012599,2]
[324841645,1714369850531,-500.0,0.00012599,2]
[324841646,1714369850541,-159.64465097,0.00012599,2]
[324841647,1714369850551,-151.0,0.00012599,2]
[324841648,1714369850561,-503.90385676,0.00012599,2]
[324841649,1714369850570,-500.0,0.00012599,2]
[324841650,1714369850580,-500.0,0.00012599,2]
[324841651,1714369850589,-506.60102831,0.00012599,2]
[324841652,1714369850599,-500.0,0.00012599,2]
[324841653,1714369850608,-500.0,0.00012599,2]
[324841654,1714369850617,-500.0,0.00012599,2]
[324841655,1714369850626,-500.0,0.00012599,2]
[324841656,1714369850635,-1000.0,0.00012599,2]
[324841657,1714369850644,-500.0,0.00012599,2]
[324841658,1714369850653,-151.0,0.00012599,2]
[324841659,1714369850662,-500.0,0.00012599,2]
[324841660,1714369850671,-500.0,0.00012599,2]
[324841661,1714369850681,-500.0,0.00012599,2]
[324841662,1714369850690,-500.0,0.00012599,2]
[324841663,1714369850699,-670.72,0.00012599,2]
[324841664,1714369850708,-500.0,0.00012599,2]
[324841665,1714369850717,-343.861261,0.00012599,2]
[324841666,1714369850726,-500.0,0.00012599,2]
[324841667,1714369850735,-506.6600631,0.00012599,2]
[324841668,1714369850746,-500.0,0.00012599,2]
[324841669,1714369850756,-500.0,0.00012599,2]
[324841670,1714369850765,-343.861261,0.00012599,2]
[324841671,1714369850774,-500.0,0.00012599,2]
[324841672,1714369850783,-500.0,0.00012599,2]
[324841673,1714369850793,-500.0,0.00012599,2]
[324841674,1714369850802,-500.0,0.00012599,2]
[324841675,1714369850811,-500.0,0.00012599,2]
[324841676,1714369850820,-502.85846534,0.00012599,2]
[324841677,1714369850830,-500.0,0.00012599,2]
[324841678,1714369850839,-500.0,0.00012599,2]
[324841679,1714369850848,-500.0,0.00012599,2]
[324841680,1714369850858,-500.0,0.00012599,2]
[324841681,1714369850867,-500.0,0.00012599,2]
[324841682,1714369850877,-504.67322754,0.00012599,2]
[324841683,1714369850886,-500.0,0.00012599,2]
[324841684,1714369850895,-500.0,0.00012599,2]
[324841685,1714369850904,-500.0,0.00012599,2]
[324841686,1714369850913,-500.0,0.00012599,2]
[324841687,1714369850923,-500.0,0.00012599,2]
[324841688,1714369850932,-500.0,0.00012599,2]
[324841689,1714369850942,-500.0,0.00012599,2]
[324841690,1714369850951,-504.3354604,0.00012599,2]
[324841691,1714369850960,-500.0,0.00012599,2]
[324841692,1714369850970,-500.0,0.00012599,2]
[324841693,1714369850979,-500.0,0.00012599,2]
[324841694,1714369850988,-500.0,0.00012599,2]
[324841695,1714369850999,-500.0,0.00012599,2]
[324841696,1714369851009,-500.0,0.00012599,2]
[324841697,1714369851018,-599.71130247,0.00012599,2]
[324841698,1714369851028,-500.0,0.00012599,2]
[324841699,1714369851037,-500.0,0.00012599,2]
[324841700,1714369851046,-500.0,0.00012599,2]
[324841701,1714369851055,-500.0,0.00012599,2]
[324841702,1714369851064,-259.33156064,0.00012599,2]
[324841703,1714369851073,-500.0,0.00012599,2]
[324841704,1714369851082,-500.41158981,0.00012599,2]
[324841705,1714369851091,-500.0,0.00012599,2]
[324841706,1714369851100,-211.137646,0.00012599,2]
[324841707,1714369851109,-500.0,0.00012599,2]
[324841708,1714369851118,-2805.37,0.00012599,2]
[324841709,1714369851127,-647.51671251,0.00012599,2]
[324841710,1714369851136,-530.45927768,0.00012599,2]
[324841711,1714369851145,-500.0,0.00012599,2]
[324841712,1714369851154,-233.251933,0.00012599,2]
[324841713,1714369851164,-211.137646,0.00012599,2]
[324841714,1714369851173,-500.0,0.00012599,2]
[324841715,1714369851183,-151.0,0.00012599,2]
[324841716,1714369851197,-233.251933,0.00012599,2]
[324841717,1714369851207,-500.0,0.00012599,2]
[324841718,1714369851216,-151.0,0.00012599,2]
[324841719,1714369851226,-535.1327548,0.00012599,2]
[324841720,1714369851236,-500.0,0.00012599,2]
[324841721,1714369851247,-500.0,0.00012599,2]
[324841722,1714369851256,-151.0,0.00012599,2]
[324841723,1714369851266,-151.0,0.00012599,2]
[324841724,1714369851275,-500.0,0.00012599,2]
[324841725,1714369851284,-500.9390931,0.00012599,2]
[324841726,1714369851293,-151.0,0.00012599,2]
[324841727,1714369851302,-502.52916979,0.00012599,2]
[324841728,1714369851311,-500.0,0.00012599,2]
[324841729,1714369851320,-500.0,0.00012599,2]
[324841730,1714369851330,-500.0,0.00012599,2]
[324841731,1714369851339,-501.67784312,0.00012599,2]
[324841732,1714369851348,-500.0,0.00012599,2]
[324841733,1714369851356,-500.0,0.00012599,2]
[324841734,1714369851366,-506.92561374,0.00012599,2]
[324841735,1714369851375,-680.5,0.00012599,2]
[324841736,1714369851384,-500.0,0.00012599,2]
[324841737,1714369851393,-500.0,0.00012599,2]
[324841738,1714369851402,-506.89619904,0.00012599,2]
[324841739,1714369851411,-500.0,0.00012599,2]
[324841740,1714369851420,-500.0,0.00012599,2]
[324841741,1714369851429,-251.801514,0.00012599,2]
[324841742,1714369851438,-500.0,0.00012599,2]
[324841743,1714369851447,-500.0,0.00012599,2]
[324841744,1714369851457,-500.0,0.00012599,2]
[324841745,1714369851465,-500.0,0.00012599,2]
[324841746,1714369851474,-500.0,0.00012599,2]
[324841747,1714369851483,-151.0,0.00012599,2]
[324841748,1714369851493,-151.596133,0.00012599,2]
[324841749,1714369851503,-500.0,0.00012599,2]
[324841750,1714369851511,-268.97030009,0.00012599,2]
[324841751,1714369851520,-500.0,0.00012599,2]
[324841752,1714369851530,-500.0,0.00012599,2]
[324841753,1714369851539,-500.0,0.00012599,2]
[324841754,1714369851548,-500.0,0.00012599,2]
[324841755,1714369851557,-500.0,0.00012599,2]
[324841756,1714369851566,-500.0,0.00012599,2]
[324841757,1714369851575,-504.95086915,0.00012599,2]
[324841758,1714369851584,-1718.9,0.00012599,2]
[324841759,1714369851593,-501.40653496,0.00012599,2]
[324841760,1714369851602,-500.0,0.00012599,2]
[324841761,1714369851611,-501.03110611,0.00012599,2]
[324841762,1714369851620,-500.0,0.00012599,2]
[324841763,1714369851629,-500.0,0.00012599,2]
[324841764,1714369851639,-500.0,0.00012599,2]